bitfinex-derivatives/quotes_BTCF0:USTF0_20210409
["timestamp","ask_amount","ask_price","bid_price","bid_amount"]
[1617962837646,0.00517818,58083.0,58080.0,1.0]
[1617962838046,0.00517818,58083.0,58082.0,2.9728]
[1617962838347,0.00517818,58083.0,58081.0,0.27]
[1617962838348,0.00517812,58084.0,58081.0,0.27]
[1617962838552,0.00517812,58084.0,58083.0,2.9741]
[1617962838949,0.00517812,58084.0,58083.0,3.09135655]
[1617962839149,0.00517812,58084.0,58083.0,4.09135655]
[1617962839749,0.00517804,58085.0,58084.0,1.0]
[1617962840152,0.00517775,58087.0,58084.0,1.27]
[1617962840758,0.00517758,58089.0,58084.0,1.27]
[1617962841254,0.00517758,58089.0,58084.0,0.27]
[1617962841653,0.00517758,58090.0,58088.0,3.6904]
[1617962841853,0.00517758,58090.0,58088.0,4.83106]
[1617962842054,0.00517758,58090.0,58089.0,0.27]
[1617962842555,0.00277473,58091.0,58089.0,0.27]
[1617962843060,0.00277473,58091.0,58090.0,0.10725655]
[1617962843479,0.00277473,58091.0,58090.0,1.37725655]
[1617962843671,0.36536455,58097.0,58090.0,0.37725655]
[1617962844071,0.36536313,58098.0,58096.0,3.1944]
[1617962844468,0.36536313,58098.0,58097.0,0.27]
[1617962845058,0.36536313,58098.0,58097.0,0.37725655]
[1617962845701,4.86926313,58098.0,58097.0,0.37725655]
[1617962846261,0.61092249,58098.0,58097.0,0.37725655]
[1617962846659,0.36536313,58098.0,58097.0,0.37725655]
[1617962849364,0.36536313,58098.0,58097.0,3.49655655]
[1617962849564,0.36488742,58099.0,58097.0,0.37725655]
[1617962849821,4.1274,58098.0,58097.0,0.37725655]
[1617962849965,6.35576966,58098.0,58097.0,0.37725655]
[1617962850165,4.85576966,58098.0,58097.0,0.37725655]
[1617962850466,6.35576966,58098.0,58097.0,0.37725655]
[1617962850865,4.85576966,58098.0,58097.0,0.37725655]
[1617962851067,2.28159875,58098.0,58097.0,0.37725655]
[1617962851266,3.78159875,58098.0,58097.0,0.37725655]
[1617962851469,3.78159875,58098.0,58097.0,0.27]
[1617962851670,6.59409875,58098.0,58097.0,0.27]
[1617962851968,7.6693256,58098.0,58072.0,0.27]
[1617962852167,7.6693256,58098.0,58097.0,0.27]
[1617962852569,7.6693256,58098.0,58078.0,2.6185]
[1617962852570,1.92517655,58098.0,58078.0,2.6185]
[1617962852770,2.92517655,58098.0,58078.0,2.6185]
[1617962852971,4.13577511,58098.0,58097.0,0.26897665]
[1617962853169,1.81792,58098.0,58088.0,0.10725655]
[1617962853379,2.81792,58098.0,58088.0,0.10725655]
[1617962853638,2.81792,58098.0,58097.0,0.27]
[1617962853870,1.81792,58098.0,58089.0,0.27]
[1617962854175,1.5,58095.0,58071.0,0.4592]
[1617962854369,1.5,58089.0,58079.0,0.01]
[1617962854670,0.36457036,58081.0,58071.0,0.4592]
[1617962854869,0.49564036,58081.0,58080.0,0.27]
[1617962855071,0.23832655,58081.0,58080.0,0.37725655]
[1617962855271,0.23832655,58081.0,58080.0,0.10725655]
[1617962855472,1.84852839,58081.0,58080.0,0.37725655]
[1617962856875,2.29461982,58081.0,58080.0,0.37725655]
[1617962857273,1.84852839,58081.0,58080.0,0.37725655]
[1617962859795,0.84852839,58081.0,58080.0,0.37725655]
[1617962859974,1.84852839,58081.0,58080.0,0.37725655]
[1617962863005,3.34852839,58081.0,58080.0,0.37725655]
[1617962863604,1.84852839,58081.0,58080.0,0.37725655]
[1617962864279,0.84852839,58081.0,58080.0,0.37725655]
[1617962864578,1.16468599,58081.0,58080.0,0.37725655]
[1617962865180,2.16468599,58081.0,58080.0,0.37725655]
[1617962865581,1.16468599,58081.0,58080.0,0.37725655]
[1617962865781,2.16468599,58081.0,58080.0,0.37725655]
[1617962866082,0.71745839,58081.0,58080.0,2.99585655]
[1617962867186,0.61020184,58081.0,58080.0,2.99585655]
[1617962867384,1.0,58084.0,58080.0,2.99585655]
[1617962867584,0.36592726,58081.0,58080.0,2.99585655]
[1617962867784,0.36592726,58081.0,58080.0,3.04695655]
[1617962867984,0.36592726,58081.0,58080.0,2.99585655]
[1617962868185,1.0,58091.0,58080.0,2.99585655]
[1617962868384,0.81375095,58081.0,58080.0,2.99585655]
[1617962868584,0.44755285,58081.0,58080.0,2.99585655]
[1617962868785,0.81374809,58081.0,58080.0,2.99585655]
[1617962869186,0.36619681,58081.0,58080.0,2.99585655]
[1617962872692,0.67136324,58081.0,58080.0,2.99585655]
[1617962875494,1.11913224,58081.0,58080.0,2.99585655]
[1617962876393,1.36473685,58081.0,58080.0,2.99585655]
[1617962876793,0.67136324,58081.0,58080.0,2.99585655]
[1617962879199,1.11939531,58081.0,58080.0,2.99585655]
[1617962881802,1.11939531,58081.0,58080.0,3.12112655]
[1617962882401,0.67136324,58081.0,58080.0,3.12112655]
[1617962883406,1.11966125,58081.0,58080.0,3.12112655]
[1617962885403,0.67136324,58081.0,58080.0,3.12112655]
[1617962887807,1.11965979,58081.0,58080.0,3.12112655]
[1617962888208,0.67136324,58081.0,58080.0,3.12112655]
[1617962888710,1.11966018,58081.0,58080.0,3.12112655]
[1617962893816,0.67136324,58081.0,58080.0,3.12112655]
[1617962894718,1.11968811,58081.0,58080.0,3.12112655]
[1617962895320,0.67136324,58081.0,58080.0,3.12112655]
[1617962895520,0.91697534,58081.0,58080.0,3.12112655]
[1617962896018,0.67136324,58081.0,58080.0,3.12112655]
[1617962898421,1.11974782,58081.0,58080.0,3.12112655]
[1617962898823,0.67136324,58081.0,58080.0,3.12112655]
[1617962899223,1.11974523,58081.0,58080.0,3.12112655]
[1617962901625,1.11974523,58081.0,58080.0,0.50252655]
[1617962901825,4.08524523,58081.0,58080.0,0.37725655]
[1617962902126,1.11974523,58081.0,58080.0,3.03670655]
[1617962902434,1.36535598,58081.0,58080.0,3.03670655]
[1617962902925,1.11974523,58081.0,58080.0,3.03670655]
[1617962903231,1.36535683,58081.0,58080.0,3.03670655]
[1617962903631,1.11974523,58081.0,58080.0,3.03670655]
[1617962906027,1.11974523,58081.0,58080.0,0.52020655]
[1617962906228,1.11974523,58081.0,58080.0,0.37725655]
[1617962909734,1.11974523,58081.0,58080.0,3.41465655]
[1617962915039,1.11974523,58081.0,58080.0,3.71075148]
[1617962916744,1.11974523,58081.0,58080.0,4.06642437]
[1617962923550,0.67136324,58081.0,58080.0,4.06642437]
[1617962924650,0.67136324,58081.0,58080.0,1.02902437]
[1617962924852,0.91694114,58081.0,58080.0,1.02902437]
[1617962925351,1.36660878,58081.0,58080.0,1.02902437]
[1617962926753,1.36660878,58081.0,58080.0,0.67335148]
[1617962927154,1.36660878,58081.0,58080.0,3.37555148]
[1617962927354,1.36660878,58081.0,58080.0,3.50445148]
[1617962927659,1.12103088,58081.0,58080.0,3.50445148]
[1617962928155,0.67136324,58081.0,58080.0,3.86002232]
[1617962929556,0.67136324,58081.0,58080.0,3.75276577]
[1617962930057,0.67136324,58081.0,58080.0,3.86002232]
[1617962930261,0.67136324,58081.0,58080.0,3.91202232]
[1617962930605,0.67136324,58081.0,58080.0,4.91202232]
[1617962930758,0.30516643,58081.0,58080.0,5.34622528]
[1617962931661,0.30206643,58081.0,58080.0,4.34622528]
[1617962931861,0.30206643,58081.0,58080.0,4.29422528]
[1617962932160,0.67006217,58081.0,58080.0,4.29422528]
[1617962932459,0.64666217,58081.0,58080.0,4.29422528]
[1617962932661,0.24086643,58081.0,58080.0,4.29422528]
[1617962932861,0.23846643,58081.0,58080.0,4.34642528]
[1617962933061,0.94072546,58102.0,58080.0,4.34642528]
[1617962933062,0.36741021,58086.0,58080.0,4.34642528]
[1617962933561,0.36741021,58086.0,58085.0,0.35464926]
[1617962933962,0.36741021,58086.0,58085.0,0.62464926]
[1617962934461,0.36739106,58087.0,58085.0,0.6860361]
[1617962935265,0.44902845,58091.0,58086.0,2.74488757]
[1617962935764,0.44902845,58091.0,58090.0,3.5021]
[1617962935978,0.44902845,58091.0,58090.0,3.60935655]
[1617962936170,0.44902845,58091.0,58090.0,3.61935655]
[1617962936666,0.81642088,58091.0,58090.0,3.61935655]
[1617962937067,0.36739243,58091.0,58090.0,3.61935655]
[1617962937566,0.81640606,58091.0,58090.0,3.61935655]
[1617962939770,0.36739243,58091.0,58090.0,3.61935655]
[1617962940674,0.36739243,58091.0,58090.0,4.61935655]
[1617962943876,0.34169243,58091.0,58090.0,4.61935655]
[1617962944279,0.32449243,58091.0,58090.0,4.61935655]
[1617962944579,0.57003392,58091.0,58090.0,4.61935655]
[1617962944778,0.32449243,58091.0,58090.0,4.61935655]
[1617962947586,0.32449243,58091.0,58090.0,3.61935655]
[1617962948189,0.32449243,58091.0,58090.0,4.61935655]
[1617962948590,0.44868519,58096.0,58090.0,3.61935655]
[1617962948791,0.44868519,58096.0,58090.0,4.61935655]
[1617962949091,0.75539915,58102.0,58090.0,3.61935655]
[1617962949092,0.44868611,58095.0,58090.0,3.61935655]
[1617962949691,0.44868648,58096.0,58094.0,1.0]
[1617962949893,0.44868648,58096.0,58094.0,0.09823]
[1617962950092,0.44868648,58096.0,58095.0,0.27]
[1617962950792,0.44868648,58096.0,58091.0,0.27]
[1617962950991,0.44868648,58096.0,58095.0,0.27]
[1617962951394,0.44868648,58096.0,58094.0,0.0511]
[1617962951591,0.44868648,58096.0,58095.0,0.27]
[1617962952291,0.44868648,58096.0,58095.0,3.4694]
[1617962952493,0.44867986,58097.0,58095.0,4.4694]
[1617962952792,0.44867986,58097.0,58095.0,3.4694]
[1617962953192,0.44867986,58097.0,58096.0,1.0]
[1617962953592,0.44867986,58097.0,58096.0,1.27]
[1617962954193,0.44867986,58097.0,58096.0,1.37725655]
[1617962955394,0.44867986,58097.0,58096.0,0.37725655]
[1617962955795,0.44851997,58098.0,58096.0,0.37725655]
[1617962955995,0.44851997,58098.0,58096.0,1.37725655]
[1617962956295,0.69406611,58097.0,58096.0,0.37725655]
[1617962956998,0.44852336,58097.0,58096.0,0.37725655]
[1617962957197,0.44852336,58097.0,58096.0,3.00795655]
[1617962959003,0.44852336,58097.0,58096.0,4.00795655]
[1617962959901,0.44856347,58099.0,58096.0,4.00795655]
[1617962960103,0.24553556,58097.0,58096.0,3.00795655]
[1617962960701,0.44856347,58099.0,58096.0,4.00795655]
[1617962961201,0.24553823,58097.0,58096.0,3.00795655]
[1617962961402,0.24553823,58097.0,58096.0,4.00795655]
[1617962961605,0.44856564,58100.0,58096.0,5.50795655]
[1617962961855,0.44856564,58100.0,58096.0,2.87725655]
[1617962962004,0.71356692,58123.0,58096.0,2.87725655]
[1617962962005,0.24553343,58097.0,58096.0,1.87725655]
[1617962962504,0.24553328,58099.0,58096.0,2.87725655]
[1617962962704,0.24553328,58099.0,58096.0,1.87725655]
[1617962962904,0.24553328,58099.0,58098.0,2.5]
[1617962963204,0.44855333,58102.0,58100.0,3.6246]
[1617962963506,0.44834887,58103.0,58100.0,4.6246]
[1617962963703,0.44834887,58103.0,58101.0,0.01]
[1617962964004,0.44834887,58103.0,58102.0,1.0]
[1617962964207,0.44834887,58103.0,58102.0,1.10725655]
[1617962964405,0.44834887,58103.0,58102.0,1.37725655]
[1617962964908,0.75407279,58103.0,58102.0,1.37725655]
[1617962967406,0.75407279,58103.0,58102.0,2.87725655]
[1617962968309,0.30572392,58103.0,58102.0,2.87725655]
[1617962968909,0.30572392,58103.0,58102.0,1.37725655]
[1617962969408,0.30572392,58103.0,58102.0,0.37725655]
[1617962969809,0.6725664,58103.0,58102.0,0.37725655]
[1617962970009,0.6725664,58103.0,58102.0,2.87785655]
[1617962970211,1.12129633,58103.0,58102.0,2.87785655]
[1617962970411,1.12129633,58103.0,58102.0,3.87785655]
[1617962973211,1.12129633,58103.0,58102.0,4.37785655]
[1617962973411,1.12129633,58103.0,58102.0,5.37785655]
[1617962974032,0.6725664,58103.0,58102.0,4.37785655]
[1617962974214,0.6725664,58103.0,58102.0,3.87785655]
[1617962974713,0.6725664,58103.0,58102.0,2.87785655]
[1617962974914,0.6725664,58103.0,58102.0,3.87785655]
[1617962976514,0.30572392,58103.0,58102.0,4.17254783]
[1617962978017,0.36692473,58104.0,58102.0,4.17254783]
[1617962978218,0.3057844,58103.0,58102.0,4.17254783]
[1617962979317,0.2633844,58103.0,58102.0,4.17254783]
[1617962979718,0.2633844,58103.0,58102.0,5.67254783]
[1617962980619,0.2610844,58103.0,58102.0,5.67254783]
[1617962980822,0.2584844,58103.0,58102.0,5.67254783]
[1617962981622,0.2584844,58103.0,58102.0,6.02635987]
[1617962984224,0.2526844,58103.0,58102.0,6.02635987]
[1617962985224,0.1914844,58103.0,58102.0,6.02635987]
[1617962985424,0.0807844,58103.0,58102.0,6.02635987]
[1617962985625,0.36696933,58113.0,58102.0,6.4582468]
[1617962985825,0.36696933,58113.0,58108.0,1.0]
[1617962986031,0.36694838,58120.0,58109.0,1.5]
[1617962986227,0.36694838,58120.0,58112.0,1.0]
[1617962986439,0.4484643,58127.0,58119.0,0.10725655]
[1617962986631,0.4484643,58127.0,58119.0,1.10725655]
[1617962986830,0.44839882,58126.0,58120.0,0.01]
[1617962987126,0.44839882,58126.0,58120.0,0.10432]
[1617962987328,0.44839963,58130.0,58128.0,1.0]
[1617962987730,0.0029,58150.0,58121.0,1.5]
[1617962987731,0.4483843,58131.0,58129.0,2.7851]
[1617962987934,0.4483843,58131.0,58129.0,3.7851]
[1617962988131,0.4483847,58134.0,58129.0,4.0151]
[1617962988328,0.4483847,58134.0,58133.0,1.60725655]
[1617962988529,0.4483847,58134.0,58133.0,2.73392655]
[1617962988730,0.44837176,58135.0,58133.0,2.74392655]
[1617962989132,0.24539397,58134.0,58133.0,1.74392655]
[1617962989531,0.0029,58150.0,58133.0,1.74392655]
[1617962989532,0.44834921,58138.0,58133.0,1.74392655]
[1617962990035,0.44835233,58139.0,58137.0,1.0]
[1617962990233,0.44835233,58139.0,58133.0,0.24392655]
[1617962990432,0.24538952,58137.0,58133.0,0.10725655]
[1617962990839,0.44835587,58138.0,58133.0,0.10725655]
[1617962990840,0.44835443,58135.0,58134.0,0.27]
[1617962991254,1.44835443,58135.0,58134.0,0.27]
[1617962991433,1.64835443,58135.0,58134.0,0.27]
[1617962991835,0.69375393,58135.0,58134.0,0.27]
[1617962992034,0.69375393,58135.0,58134.0,3.6732]
[1617962993035,0.44835443,58135.0,58134.0,3.6732]
[1617962993735,0.59859443,58135.0,58134.0,3.6732]
[1617962994436,0.8439951,58135.0,58134.0,0.27]
[1617962994836,1.35365568,58135.0,58134.0,0.27]
[1617962996238,0.39564067,58135.0,58134.0,0.27]
[1617962996437,0.24540067,58135.0,58134.0,0.3209]
[1617962996662,0.24540067,58135.0,58134.0,4.1685]
[1617962997039,0.44703783,58144.0,58134.0,4.1685]
[1617962997538,0.44702908,58145.0,58144.0,1.0]
[1617962998040,0.44702908,58145.0,58144.0,1.01]
[1617962998439,0.4470094,58148.0,58144.0,1.11725655]
[1617962998841,0.44700349,58147.0,58145.0,1.0]
[1617962999241,0.44700349,58147.0,58146.0,0.27]
[1617962999441,0.44700349,58147.0,58146.0,0.4162]
[1617963000943,0.44700349,58147.0,58146.0,1.4162]
[1617963001143,0.44700349,58147.0,58146.0,2.9162]
[1617963001347,0.692357,58149.0,58146.0,1.9162]
[1617963001544,0.692357,58149.0,58148.0,4.9297]
[1617963001744,0.44697504,58149.0,58148.0,4.9297]
[1617963001946,0.0029,58150.0,58148.0,6.1997]
[1617963002144,0.0029,58150.0,58149.0,1.0]
[1617963002544,0.0029,58150.0,58149.0,2.77]
[1617963002948,0.0029,58150.0,58149.0,2.8217]
[1617963003146,0.44692381,58159.0,58149.0,2.8217]
[1617963003546,0.44692381,58159.0,58158.0,1.0]
[1617963003745,0.44692381,58159.0,58158.0,2.64537]
[1617963003947,0.44691757,58161.0,58158.0,2.91537]
[1617963004448,0.44691757,58161.0,58160.0,0.10725655]
[1617963004648,0.44691757,58161.0,58160.0,1.10725655]
[1617963004847,0.44691757,58161.0,58160.0,1.37725655]
[1617963005049,0.44471012,58170.0,58160.0,1.37725655]
[1617963005452,0.44471012,58170.0,58166.0,1.0]
[1617963005648,0.44471012,58170.0,58169.0,1.0]
[1617963006048,0.44471012,58170.0,58169.0,0.01]
[1617963006450,0.44471012,58170.0,58169.0,0.10725655]
[1617963006650,0.44470896,58174.0,58169.0,1.37725655]
[1617963007050,0.44470896,58174.0,58170.0,1.0]
[1617963007450,0.44470896,58174.0,58171.0,0.27]
[1617963008052,0.44470896,58174.0,58173.0,1.0]
[1617963008351,0.44470896,58174.0,58172.0,0.27]
[1617963008552,0.44470896,58174.0,58173.0,0.01]
[1617963008753,0.44470896,58174.0,58170.0,0.27]
[1617963008953,0.58705896,58174.0,58170.0,0.27]
[1617963009153,0.78010867,58174.0,58173.0,0.27]
[1617963009353,0.63895547,58174.0,58170.0,0.27]
[1617963009753,1.08367863,58174.0,58173.0,3.422]
[1617963009955,0.69856812,58176.0,58173.0,3.422]
[1617963010154,0.69856812,58176.0,58173.0,3.152]
[1617963010355,0.69856812,58176.0,58174.0,0.27]
[1617963010558,0.50535345,58176.0,58175.0,0.10725655]
[1617963011063,0.50535345,58176.0,58175.0,0.37725655]
[1617963011064,0.80859016,58176.0,58175.0,0.37725655]
[1617963012962,0.80859016,58176.0,58175.0,0.47909655]
[1617963013160,0.80859016,58176.0,58175.0,4.52419655]
[1617963013359,1.00287344,58176.0,58175.0,4.52419655]
[1617963013858,0.36387568,58176.0,58175.0,4.52419655]
[1617963014158,0.36387568,58176.0,58175.0,3.52419655]
[1617963014358,0.36387568,58176.0,58175.0,0.47909655]
[1617963014558,0.36387568,58176.0,58175.0,1.47909655]
[1617963014762,0.36387568,58176.0,58175.0,0.47909655]
[1617963014959,0.36387568,58176.0,58175.0,3.90629655]
[1617963015863,0.66707282,58176.0,58175.0,4.90629655]
[1617963016261,0.30319714,58176.0,58175.0,4.90629655]
[1617963016761,0.30319714,58176.0,58175.0,3.90629655]
[1617963017063,0.30319714,58176.0,58175.0,4.90629655]
[1617963017461,0.30319714,58176.0,58175.0,3.90629655]
[1617963019965,0.6663634,58176.0,58175.0,3.90629655]
[1617963021468,1.8663634,58176.0,58175.0,0.37725655]
[1617963021710,1.6663634,58176.0,58175.0,0.37725655]
[1617963021868,1.6663634,58176.0,58175.0,2.99953456]
[1617963021869,1.11022263,58176.0,58175.0,2.99953456]
[1617963022269,0.88911667,58176.0,58175.0,2.99953456]
[1617963023673,0.6663634,58176.0,58175.0,2.99953456]
[1617963023870,0.88929828,58176.0,58175.0,0.37623456]
[1617963024370,0.6663634,58176.0,58175.0,0.37623456]
[1617963025672,1.11037863,58176.0,58175.0,0.37623456]
[1617963026075,1.31037863,58176.0,58175.0,0.37623456]
[1617963026674,0.8663634,58176.0,58175.0,0.37623456]
[1617963027074,1.50627472,58176.0,58175.0,0.37623456]
[1617963027274,1.30627472,58176.0,58175.0,0.37623456]
[1617963028277,1.50627472,58176.0,58175.0,0.37623456]
[1617963028579,1.310383,58176.0,58175.0,0.37623456]
[1617963028879,1.110383,58176.0,58175.0,0.37623456]
[1617963029079,0.9399624,58176.0,58175.0,3.36223456]
[1617963029478,0.6660838,58176.0,58175.0,3.36223456]
[1617963031285,0.6660838,58176.0,58175.0,3.47127456]
[1617963031482,0.30291754,58176.0,58175.0,3.47127456]
[1617963032782,0.30291754,58176.0,58175.0,4.47127456]
[1617963033280,0.30291754,58176.0,58175.0,3.47127456]
[1617963033981,0.66688008,58176.0,58175.0,3.47127456]
[1617963036082,0.66688008,58176.0,58175.0,4.47127456]
[1617963036686,0.66688008,58176.0,58175.0,3.47127456]
[1617963036983,1.49665944,58219.0,58175.0,3.47127456]
[1617963037185,0.50543592,58189.0,58176.0,1.5]
[1617963037685,0.2,58202.0,58188.0,1.0]
[1617963037886,0.2,58202.0,58194.0,1.0]
[1617963038086,0.2,58215.0,58195.0,1.5]
[1617963038386,0.2,58215.0,58201.0,4.4487]
[1617963038602,0.2,58216.0,58207.0,1.0]
[1617963038786,0.2,58216.0,58201.0,3.55136]
[1617963038787,0.2,58216.0,58212.0,0.10725655]
[1617963039189,0.2,58216.0,58213.0,0.27]
[1617963039489,0.2,58216.0,58213.0,0.39505]
[1617963039688,0.2,58216.0,58213.0,0.39402834]
[1617963040398,0.2,58216.0,58213.0,0.26897834]
[1617963047098,0.56796129,58215.0,58213.0,0.26897834]
[1617963048104,0.56796129,58215.0,58214.0,2.7945]
[1617963048502,0.56796129,58215.0,58214.0,3.0645]
[1617963049401,0.2,58216.0,58214.0,3.0645]
[1617963049802,0.76733955,58216.0,58214.0,3.0645]
[1617963050304,0.2,58216.0,58214.0,0.26897835]
[1617963050501,0.67459459,58217.0,58214.0,0.26897835]
[1617963052104,0.56734156,58216.0,58214.0,0.26897835]
[1617963052503,0.67460101,58217.0,58214.0,0.26897835]
[1617963053404,0.67460101,58217.0,58216.0,3.616]
[1617963053604,0.10725655,58217.0,58216.0,3.616]
[1617963053805,0.10725655,58217.0,58216.0,2.886]
[1617963055103,0.56731238,58222.0,58216.0,2.886]
[1617963056105,0.56913006,58217.0,58216.0,2.886]
[1617963057306,0.56913006,58217.0,58216.0,0.27]
[1617963057705,0.56913006,58217.0,58213.0,0.27]
[1617963058106,0.56913006,58217.0,58216.0,0.27]
[1617963058306,0.56913006,58217.0,58213.0,0.27]
[1617963059007,0.56913006,58217.0,58213.0,1.27]
[1617963059209,0.56913006,58217.0,58216.0,4.4041]
[1617963059607,0.56913006,58217.0,58216.0,3.6741]
[1617963060210,0.56837495,58220.0,58216.0,3.6741]
[1617963060409,0.56837495,58220.0,58216.0,4.6741]
[1617963060809,0.56837495,58220.0,58219.0,0.10725655]
[1617963061009,0.5683626,58221.0,58219.0,0.10725655]
[1617963061210,0.5683626,58221.0,58219.0,0.37725655]
[1617963061711,0.5683626,58221.0,58219.0,0.37623501]
[1617963061909,0.5683626,58221.0,58219.0,0.51512501]
[1617963062109,0.5683626,58221.0,58220.0,1.0]
[1617963062313,0.5683634,58222.0,58220.0,1.0]
[1617963062510,0.5683634,58222.0,58220.0,0.27]
[1617963063210,0.56835502,58223.0,58220.0,0.27]
[1617963063612,0.56835475,58222.0,58220.0,0.27]
[1617963064612,0.56832323,58225.0,58220.0,0.27]
[1617963064913,0.2,58224.0,58220.0,0.27]
[1617963065311,0.2,58224.0,58220.0,1.27]
[1617963065512,0.2,58224.0,58220.0,0.27]
[1617963066114,0.34908,58224.0,58220.0,0.27]
[1617963066539,0.56831754,58223.0,58220.0,0.27]
[1617963066716,0.2,58222.0,58220.0,0.27]
[1617963068217,3.06781,58222.0,58220.0,0.27]
[1617963068917,0.11251,58222.0,58220.0,0.27]
[1617963069118,0.11251,58222.0,58221.0,4.295]
[1617963069319,0.56830717,58225.0,58221.0,4.41253]
[1617963069620,0.56830717,58225.0,58224.0,1.0]
[1617963069820,0.56826775,58228.0,58224.0,1.0]
[1617963070020,0.56826775,58228.0,58224.0,1.27]
[1617963070218,0.56824513,58233.0,58224.0,1.27]
[1617963070619,0.56823849,58232.0,58224.0,1.27]
[1617963070918,0.56823849,58232.0,58231.0,0.10725655]
[1617963071320,0.56823849,58232.0,58231.0,0.37725655]
[1617963072822,0.56823849,58232.0,58231.0,0.37623519]
[1617963074622,0.56721286,58236.0,58231.0,0.37623519]
[1617963077425,0.56711361,58234.0,58231.0,0.37623519]
[1617963077826,0.30725655,58244.0,58231.0,0.37623519]
[1617963077827,0.56711539,58235.0,58231.0,0.37623519]
[1617963079827,0.10725655,58238.0,58234.0,3.54]
[1617963080133,0.56707238,58239.0,58234.0,3.54]
[1617963080346,0.56707238,58239.0,58235.0,0.27]
[1617963080729,1.89105589,58253.0,58235.0,0.27]
[1617963080730,0.56707382,58238.0,58235.0,0.27]
[1617963081129,0.56707144,58239.0,58237.0,0.10725655]
[1617963081329,0.56707144,58239.0,58237.0,0.23327655]
[1617963081541,0.56707144,58239.0,58238.0,0.27]
[1617963082931,0.56707841,58240.0,58238.0,0.26897877]
[1617963083730,0.50633098,58239.0,58238.0,0.26897877]
[1617963083945,0.50633098,58239.0,58238.0,3.39540877]
[1617963084130,1.07338606,58239.0,58238.0,3.39540877]
[1617963084532,0.50633098,58239.0,58238.0,3.39540877]
[1617963085433,0.50633098,58239.0,58238.0,4.39540877]
[1617963088335,0.50633098,58239.0,58238.0,3.39540877]
[1617963088535,0.50633098,58239.0,58238.0,4.39540877]
[1617963090938,0.50633098,58239.0,58238.0,3.39540877]
[1617963091238,0.50633098,58239.0,58238.0,4.39540877]
[1617963092840,0.50661175,58241.0,58238.0,4.39540877]
[1617963093339,0.56739301,58250.0,58238.0,4.39540877]
[1617963093340,0.5066053,58242.0,58239.0,1.0]
[1617963093841,0.5066053,58242.0,58240.0,0.27]
[1617963094341,0.50661265,58241.0,58240.0,0.27]
[1617963094544,0.50661265,58241.0,58240.0,0.3214]
[1617963094754,0.50660545,58242.0,58240.0,0.3214]
[1617963095743,0.2,58263.0,58240.0,0.3214]
[1617963095744,0.5066074,58243.0,58240.0,0.3214]
[1617963095944,0.5066074,58243.0,58240.0,0.27]
[1617963096545,0.5066074,58243.0,58239.0,1.27]
[1617963096973,0.5066074,58243.0,58242.0,2.5045]
[1617963097175,0.5066074,58243.0,58242.0,2.5552]
[1617963097366,0.5065733,58244.0,58242.0,3.5552]
[1617963097546,0.5065733,58244.0,58242.0,1.27]
[1617963097846,0.50655537,58250.0,58243.0,3.6879]
[1617963098047,0.50655537,58250.0,58244.0,1.0]
[1617963098245,0.50655537,58250.0,58244.0,1.27]
[1617963098446,0.50582558,58252.0,58244.0,0.27]
[1617963098646,0.50582558,58252.0,58249.0,1.0]
[1617963098845,0.50582558,58252.0,58249.0,0.14778]
[1617963099046,0.50582558,58252.0,58251.0,1.0]
[1617963099246,0.50582195,58253.0,58251.0,1.10725655]
[1617963099446,0.50582195,58253.0,58251.0,0.37725655]
[1617963100267,0.50582195,58253.0,58252.0,3.9545]
[1617963100684,0.50581208,58254.0,58252.0,3.2245]
[1617963100879,0.50581208,58254.0,58253.0,1.0]
[1617963101047,0.50581208,58254.0,58252.0,3.2245]
[1617963101266,0.50580505,58256.0,58253.0,0.27]
[1617963101649,0.50581006,58255.0,58253.0,0.27]
[1617963102050,0.50580004,58256.0,58253.0,0.27]
[1617963102249,0.50580004,58256.0,58254.0,1.0]
[1617963102448,0.50580004,58256.0,58252.0,0.27]
[1617963102674,0.50580145,58258.0,58255.0,3.539]
[1617963102951,0.50580145,58258.0,58255.0,3.269]
[1617963103154,0.50580145,58258.0,58257.0,0.10725655]
[1617963103357,0.50580694,58259.0,58257.0,0.10725655]
[1617963103550,0.50580694,58259.0,58257.0,0.11725655]
[1617963104249,0.50580851,58260.0,58257.0,0.11725655]
[1617963106558,0.09187015,58266.0,58257.0,0.11725655]
[1617963106559,0.50580111,58259.0,58257.0,0.11725655]
[1617963106959,0.50578943,58260.0,58257.0,0.11725655]
[1617963107357,0.50579566,58259.0,58257.0,0.11725655]
[1617963107559,2.9523,58258.0,58257.0,0.11725655]
[1617963107959,3.45808874,58258.0,58257.0,0.11725655]
[1617963108358,4.54995865,58258.0,58257.0,0.11725655]
[1617963108563,6.04995865,58258.0,58226.0,0.4875]
[1617963108761,3.09765865,58258.0,58226.0,0.4875]
[1617963108960,2.7825,58239.0,58226.0,0.4875]
[1617963109179,2.89935,58239.0,58238.0,0.10725655]
[1617963109560,2.89935,58239.0,58238.0,0.37725655]
[1617963109764,3.89935,58239.0,58238.0,0.37725655]
[1617963110362,2.89935,58239.0,58238.0,0.37725655]
[1617963113468,1.11685,58239.0,58238.0,0.37725655]
[1617963113668,0.11685,58239.0,58238.0,0.37725655]
[1617963113868,1.11685,58239.0,58238.0,0.37725655]
[1617963114069,0.11685,58239.0,58238.0,0.37725655]
[1617963114267,1.0,58239.0,58238.0,0.37725655]
[1617963114468,4.30049,58239.0,58238.0,0.37725655]
[1617963114868,4.39237372,58239.0,58238.0,0.37725655]
[1617963116070,3.39237372,58239.0,58238.0,0.37725655]
[1617963116271,4.39237372,58239.0,58238.0,0.37725655]
[1617963116872,5.89237372,58239.0,58238.0,0.37725655]
[1617963118977,6.39828021,58239.0,58238.0,0.37623556]
[1617963121081,6.96648037,58239.0,58238.0,0.37623556]
[1617963122087,6.96648037,58239.0,58238.0,0.17623556]
[1617963122782,6.39828021,58239.0,58238.0,0.17623556]
[1617963123685,0.73188021,58239.0,58238.0,0.17623556]
[1617963123884,0.59779021,58239.0,58238.0,3.36353556]
[1617963124592,0.59779021,58239.0,58238.0,0.17623556]
[1617963124593,0.50590649,58239.0,58238.0,0.17623556]
[1617963124985,3.45900649,58239.0,58238.0,0.17623556]
[1617963125190,4.45900649,58239.0,58238.0,0.17623556]
[1617963125385,3.5508917,58239.0,58238.0,0.28349211]
[1617963125586,4.5508917,58239.0,58238.0,0.28349211]
[1617963127191,6.0508917,58239.0,58238.0,0.28349211]
[1617963127792,6.37668037,58239.0,58238.0,0.28349211]
[1617963128107,3.87668037,58239.0,58238.0,0.28349211]
[1617963128393,4.87668037,58239.0,58238.0,0.28349211]